Cogmind - Beta 10.2 @@@ ROGUE MODE // 2021.12.21 @ 03:45:51 Player: Dhoby_Ghaut Result: Self-destructed Performance ------------- Evolutions (3) 1500 Regions Visited (6) 1200 Robots Destroyed (20) 100 Value Destroyed (568) 568 Prototype IDs (25) 500 Alien Tech Used (0) 0 Bonus (300) 300 TOTAL SCORE: 4168 Bonus ------- Aligned with FarCom 300 Cogmind --------- Core Integrity 595/700 Matter 300/300 Energy 590/590 System Corruption 4% Temperature Cool (0) Movement Rolling (140) Ox4 Location -7/Factory Parts ------- > --- POWER (1) -------- Improved Deuterium Engine > --- PROPULSION (4) --- Compact Wheel > --- UTILITY (6) ------ Advanced Heat Sink Large Storage Unit High-capacity Storage Unit Compact Battery Advanced Targeting Computer Hardened Light Armor Plating > --- WEAPON (2) ------- (None) > --- INVENTORY (18) --- Light Nuclear Core Gravmag System Gravmag System Xenon Bombardment Thruster Improved Heat Sink Medium Storage Unit Transport Network Coupler Reactive Plating Heavy Laser Heavy Particle Cannon Heavy Particle Cannon Light Assault Rifle Grenade Launcher Grenade Launcher Grenade Launcher Field Lobotomy Kit Peak State ------------ > --- POWER ------------ Improved Deuterium Engine > --- PROPULSION ------- Light Treads Light Treads Light Treads Compact Wheel > --- UTILITY ---------- Advanced Heat Sink Large Storage Unit High-capacity Storage Unit Compact Battery Advanced Targeting Computer Hardened Light Armor Plating > --- WEAPON ----------- Heavy Particle Cannon Plasma Cannon > --- INVENTORY -------- Light Nuclear Core Reinforced Deuterium Engine Light Fission Core Compact Wheel Gravmag System Improved Heat Sink Medium Storage Unit Transport Network Coupler Reactive Plating Heavy Laser Heavy Particle Cannon Heavy Particle Cannon Heavy Particle Cannon Light Assault Rifle Grenade Launcher Grenade Launcher Grenade Launcher Field Lobotomy Kit [Rating: 35] Favorites ----------- Power Light Ion Engine Engine Light Ion Engine Propulsion Light Treads Treads Light Treads Wheel Compact Wheel Utility High-capacity Storage Unit Device Advanced Heat Sink Storage High-capacity Storage Unit Processor Advanced Targeting Computer Protection Hardened Light Armor Plating Weapon Heavy Particle Cannon Energy Gun Medium Laser Energy Cannon Heavy Particle Cannon Ballistic Gun Light Assault Rifle Launcher Grenade Launcher Build | -11 -10 -10 -10 -9 -8 -7 ------- Run | Scr Mat Min Exi Min Mat Fac Slots Evolved 6 | . . . . . 4 2 Power . | . . . . . . . Propulsion 2 | . . . . . 1 1 Utility 4 | . . . . . 3 1 Weapon . | . . . . . . . Parts Attached 45 | 5 19 3 . 1 10 7 Power 6 | 1 3 . . . 1 1 Engine 6 | 1 3 . . . 1 1 Core . | . . . . . . . Reactor . | . . . . . . . Propulsion 16 | 2 9 . . . 1 4 Treads 7 | 1 2 . . . 1 3 Leg . | . . . . . . . Wheel 9 | 1 7 . . . . 1 Hover . | . . . . . . . Flight . | . . . . . . . Utility 11 | 1 1 2 . . 6 1 Device 1 | . . . . . 1 . Storage 6 | 1 1 1 . . 3 . Processor 1 | . . . . . 1 . Hackware . | . . . . . . . Protection 3 | . . 1 . . 1 1 Artifact . | . . . . . . . Weapon 12 | 1 6 1 . 1 2 1 Energy Gun 2 | . 2 . . . . . Energy Cannon 3 | . . . . . 2 1 Ballistic Gun 6 | 1 4 1 . . . . Ballistic Cannon . | . . . . . . . Launcher 1 | . . . . 1 . . Special Weapon . | . . . . . . . Impact Weapon . | . . . . . . . Slashing Weapon . | . . . . . . . Piercing Weapon . | . . . . . . . Special Melee Weapon . | . . . . . . . Unidentified Prototypes . | . . . . . . . Parts Lost 7 | . . 1 . . 1 5 Power . | . . . . . . . Propulsion 3 | . . . . . . 3 Utility 1 | . . . . . 1 . Weapon 3 | . . 1 . . . 2 Highest Loss Streak 5 | . . 1 . . 1 5 Average Slot Usage (%) 98 | . 94 100 100 100 97 98 Engine 10 | . 12 14 14 14 9 7 Treads 16 | . 10 14 14 14 18 20 Wheel 11 | . 17 14 14 14 9 8 Device 3 | . . . . . 6 7 Storage 25 | . 27 26 28 28 26 23 Processor 3 | . . . . . 7 7 Protection 3 | . . 1 . . 3 6 Energy Gun 2 | . 12 6 . . . . Energy Cannon 7 | . . . . . 16 14 Ballistic Gun 10 | . 12 22 28 20 . . Naked Turns . | . . . . . . . Heaviest Build 78 | 8 42 45 45 47 69 78 Greatest Support 40 | 16 26 16 16 16 20 40 Greatest Overweight (x) 4 | . 3 2 2 2 4 4 Average Overweight (x) 2 | . 1 2 2 2 3 3 Largest Inventory Capacity 18 | 6 14 16 16 16 18 18 Average Capacity 16 | 4 13 14 16 16 16 18 Most Carried 18 | 5 14 16 16 16 16 18 Average Carried 15 | 3 11 13 15 16 15 17 Final Capacity 18 | 6 14 16 16 16 18 18 Final Carried 16 | 5 13 14 16 16 15 16 Class Distribution -------------------- 95% | Mutant 4% | Scavenger-Mutant Dominant Class ---------------- Mutant | -10/Materials Mutant | -10/Mines Mutant | -10/Exiles Mutant | -9/Mines Mutant | -8/Materials Mutant | -7/Factory Resources | -11 -10 -10 -10 -9 -8 -7 ----------- Run | Scr Mat Min Exi Min Mat Fac Matter Collected 678 | 251 149 103 . 10 85 80 Remotely . | . . . . . . . Salvage Created 940 | . 147 141 . . 245 407 Parts 43 | . 5 7 . . 6 25 Haulers Intercepted 2 | . 1 . . . . 1 Recyclers Shooed 1 | . . . . . . 1 Parts Field Recycled . | . . . . . . . Retrieved Matter . | . . . . . . . Parts Self-Destructed . | . . . . . . . Prevented . | . . . . . . . Kills | -11 -10 -10 -10 -9 -8 -7 ------- Run | Scr Mat Min Exi Min Mat Fac Combat Hostiles Destroyed 12 | . . 5 . . 3 4 Guns 5 | . . 5 . . . . Cannons 5 | . . . . . 2 3 Classes Destroyed 9 | . 3 2 . . . 4 Worker 1 | . . . . . . 1 Hauler 2 | . 1 . . . . 1 Recycler 3 | . 1 . . . 1 1 Watcher 2 | . 1 . . . . 1 Swarmer 3 | . . 3 . . . . Grunt 5 | . . 2 . . 3 . Sentry 1 | . . . . . . 1 Hunter 1 | . . . . . . 1 Programmer 2 | . . . . . . 2 Best Kill Streak 4 | . 1 3 . . 4 1 Combat Bots Only 3 | . . 3 . . 2 1 Max Kills in Single Turn 1 | . 1 1 . . 1 1 Gunslinging . | . . . . . . . Exploded . | . . . . . . . Melee . | . . . . . . . Uniques/NPCs Destroyed . | . . . . . . . Combat | -11 -10 -10 -10 -9 -8 -7 -------- Run | Scr Mat Min Exi Min Mat Fac Damage Taken 1422 | . 23 252 . . 257 890 Core 159 | . . 54 . . . 105 Absorbed by Shields . | . . . . . . . Core Remaining (%) 92 | 100 . . . 78 100 . Volleys Fired 71 | 1 9 20 . . 12 29 Largest 2 | 1 2 2 . . 2 2 Hottest 155 | 20 70 70 . . 150 155 Shots Fired 141 | 1 18 40 . . 24 58 Gun 59 | 1 18 40 . . . . Cannon 82 | . . . . . 24 58 Launcher . | . . . . . . . Special . | . . . . . . . Kinetic 38 | 1 9 28 . . . . Thermal 103 | . 9 12 . . 24 58 Explosive . | . . . . . . . Electromagnetic . | . . . . . . . Robot Hit Streak 15 | 1 8 8 . . 15 6 Robot Miss Streak 6 | . 2 2 . . 1 6 Penetration Max . | . . . . . . . Secondary Targets . | . . . . . . . Shots Hit Robots 89 | 1 12 25 . . 19 32 Core Hits 31 | . 4 12 . . 6 9 Critical Hits 3 | . . 1 . . 1 1 Critical Kills 1 | . . . . . 1 . Critical Parts Destroyed 1 | . . 1 . . . . Melee Attacks . | . . . . . . . Impact . | . . . . . . . Slashing . | . . . . . . . Piercing . | . . . . . . . Sneak Attacks . | . . . . . . . Combat Hostiles . | . . . . . . . Follow-up Attacks . | . . . . . . . Damage Inflicted 1680 | 8 160 247 . . 475 790 Guns 393 | 8 138 247 . . . . Cannons 1265 | . . . . . 475 790 Explosions . | . . . . . . . Melee . | . . . . . . . Ramming 22 | . 22 . . . . . Kinetic 161 | 8 40 113 . . . . Thermal 1497 | . 98 134 . . 475 790 Explosive . | . . . . . . . Electromagnetic . | . . . . . . . Impact . | . . . . . . . Slashing . | . . . . . . . Piercing . | . . . . . . . Highest Corruption 4 | . . . . . . 4 Average Corruption 2 | . . . . . . 2 Corruption Purged . | . . . . . . . Effects 13 | . . . . . . 13 Message Errors 6 | . . . . . . 6 Energy Discharges 2 | . . . . . . 2 Data Loss (minor) 2 | . . . . . . 2 Targeting Errors 3 | . . . . . . 3 Overload Shots . | . . . . . . . Overflow Damage 5 | . . . . . 5 . Projectiles 5 | . . . . . 5 . Explosions . | . . . . . . . Melee . | . . . . . . . Knockbacks . | . . . . . . . Impact . | . . . . . . . Kinetic . | . . . . . . . Secondary . | . . . . . . . Self-Inflicted Damage 11 | . 11 . . . . . Shots . | . . . . . . . Rammed 1 | . 1 . . . . . Targets Rammed 1 | . 1 . . . . . Kicked . | . . . . . . . Crushed . | . . . . . . . Highest Temperature 302 | . 100 150 . . 302 150 Average Temperature 76 | . 41 50 . . 183 46 Received Heat Transfer 393 | . 6 81 . . 144 162 Siege Activations . | . . . . . . . Robots Corrupted . | . . . . . . . Combat Hostiles . | . . . . . . . Parts Fried 1 | . . . . . . 1 Impact Corruptions . | . . . . . . . Robots Melted 2 | . . . . . 1 1 Combat Hostiles 2 | . . . . . 1 1 Parts Melted 4 | . . . . . 1 3 Heat Transferred 2570 | . 296 370 . . 703 1201 Parts Sabotaged . | . . . . . . . Parts Stolen . | . . . . . . . Parts Stripped . | . . . . . . . Power Chain Reactions . | . . . . . . . Missiles Intercepted . | . . . . . . . Alert | -11 -10 -10 -10 -9 -8 -7 ------- Run | Scr Mat Min Exi Min Mat Fac Peak Influence 142 | . 61 142 . . 69 118 Initial 7 | . . 7 . . . 6 Average 32 | . 29 79 . . 19 31 Maximum Alert Level . | . . . . . . . Low Security (%) 100 | 100 100 100 . 100 100 100 Level 1 . | . . . . . . . Level 2 . | . . . . . . . Level 3 . | . . . . . . . Level 4 . | . . . . . . . Level 5 . | . . . . . . . High Security . | . . . . . . . Max Security . | . . . . . . . Squads Dispatched 4 | . . . . . . 4 Investigation 1 | . . . . . . 1 Extermination 1 | . . . . . . 1 Reinforcement 2 | . . . . . . 2 Assault . | . . . . . . . Garrison . | . . . . . . . Intercept . | . . . . . . . Construction Impeded . | . . . . . . . Haulers Reinforced . | . . . . . . . Stealth | -11 -10 -10 -10 -9 -8 -7 --------- Run | Scr Mat Min Exi Min Mat Fac Distress Signals 1 | . . . . . . 1 Communications Jammed . | . . . . . . . Distress Signals . | . . . . . . . Times Spotted 38 | . 8 10 . . 4 16 Peak Tracking Total 5 | . 4 3 . . 3 5 Tactical Retreats 4 | . . 4 . . . . Traps | -11 -10 -10 -10 -9 -8 -7 ------- Run | Scr Mat Min Exi Min Mat Fac Traps Triggered 7 | . 6 . . . . 1 Indirectly . | . . . . . . . Trap Hack Attempts . | . . . . . . . Triggered . | . . . . . . . Disarmed . | . . . . . . . Reprogrammed . | . . . . . . . Reused 2 | . . 1 . . . 1 Traps Extracted . | . . . . . . . Installed 5 | . . 3 . . 1 1 Triggered 2 | . . 1 . . . 1 Exploded 2 | . . . . . . 2 Machines | -11 -10 -10 -10 -9 -8 -7 ---------- Run | Scr Mat Min Exi Min Mat Fac Machines Disabled 2 | . . . . . . 2 Max in Single Turn 1 | . . . . . . 1 Garrison Access 1 | . . . . . . 1 Machines Sabotaged . | . . . . . . . Garrisons Compromised . | . . . . . . . Overloaded Fab Kills . | . . . . . . . Fab Network Shutdowns . | . . . . . . . Hacking | -11 -10 -10 -10 -9 -8 -7 --------- Run | Scr Mat Min Exi Min Mat Fac Machines Accessed 16 | . 7 . 3 . 2 4 Terminals 11 | . 7 . . . 2 2 Fabricators . | . . . . . . . Repair Stations . | . . . . . . . Recycling Units . | . . . . . . . Scanalyzers 1 | . . . . . . 1 Garrison Access 1 | . . . . . . 1 Total Hacks 66 | . 26 . 25 . 6 9 Successful 40 | . 10 . 25 . 2 3 Failed 26 | . 16 . . . 4 6 Catastrophic 2 | . 1 . . . . 1 Database Lockouts . | . . . . . . . Manual 30 | . 22 . 2 . 5 1 Terminals 37 | . 26 . . . 6 5 Fabricators . | . . . . . . . Repair Stations . | . . . . . . . Recycling Units . | . . . . . . . Scanalyzers 3 | . . . . . . 3 Garrison Access 1 | . . . . . . 1 Terminal Hacks 34 | . 7 . 25 . 2 . Record 24 | . . . 24 . . . Robot Analysis 2 | . 2 . . . . . Prototype ID Bank 1 | . 1 . . . . . Terminal Index 1 | . 1 . . . . . Locate Traps 1 | . . . . . 1 . Zone Layout 4 | . 3 . . . 1 . EX-Prototype ID Bank 1 | . . . 1 . . . Fabricator Hacks . | . . . . . . . Repair Station Hacks . | . . . . . . . Recycling Unit Hacks . | . . . . . . . Scanalyzer 2 | . . . . . . 2 Insert Component 1 | . . . . . . 1 Analyze 1 | . . . . . . 1 Garrison Access Hacks 1 | . . . . . . 1 Seal Access 1 | . . . . . . 1 Unauthorized Hacks 3 | . 3 . . . . . Terminals 3 | . 3 . . . . . Track 3 | . 3 . . . . . Fabricators . | . . . . . . . Repair Stations . | . . . . . . . Recycling Units . | . . . . . . . Scanalyzers . | . . . . . . . Garrison Access . | . . . . . . . Data Cores Recovered . | . . . . . . . Used . | . . . . . . . Hacking Detections 12 | . 7 . . . 2 3 Full Trace Events 1 | . . . . . . 1 Feedback Events . | . . . . . . . Feedback Blocked . | . . . . . . . Robot Schematics Acquired . | . . . . . . . Robots Built . | . . . . . . . Matter . | . . . . . . . Time . | . . . . . . . Total Robot Build Rating . | . . . . . . . Part Schematics Acquired 1 | . . . . . . 1 Parts Built . | . . . . . . . Matter . | . . . . . . . Time . | . . . . . . . Total Part Build Rating . | . . . . . . . Parts Repaired . | . . . . . . . Time . | . . . . . . . Parts Recycled . | . . . . . . . Recycled Matter . | . . . . . . . Retrieved Matter . | . . . . . . . Retrieved Components . | . . . . . . . Parts Scanalyzed 1 | . . . . . . 1 Part Schematics Acquired 1 | . . . . . . 1 Parts Damaged . | . . . . . . . Bothacking | -11 -10 -10 -10 -9 -8 -7 ------------ Run | Scr Mat Min Exi Min Mat Fac Used RIF Installer . | . . . . . . . Robots Hacked . | . . . . . . . Non-combat . | . . . . . . . Combat . | . . . . . . . Robot Hacks Applied . | . . . . . . . Relay Couplers Released . | . . . . . . . Robots Rewired . | . . . . . . . Allies Hacked . | . . . . . . . Hacks Repelled . | . . . . . . . Allies | -11 -10 -10 -10 -9 -8 -7 -------- Run | Scr Mat Min Exi Min Mat Fac Total Allies . | . . . . . . . Largest Group . | . . . . . . . Highest-Rated Group . | . . . . . . . Highest-Rated Ally . | . . . . . . . Total Orders . | . . . . . . . Ally Attacks . | . . . . . . . Total Damage . | . . . . . . . Kills . | . . . . . . . Allies Corrupted . | . . . . . . . Allies Melted . | . . . . . . . Intel | -11 -10 -10 -10 -9 -8 -7 ------- Run | Scr Mat Min Exi Min Mat Fac Robot Analysis Total 2 | . 2 . . . . . Derelict Logs Recovered 1 | . . 1 . . . . Drone Launches . | . . . . . . . Drone Recoveries . | . . . . . . . Exploration | -11 -10 -10 -10 -9 -8 -7 ------------- Run | Scr Mat Min Exi Min Mat Fac Turns Passed 3977 | 59 491 560 520 401 639 1307 Spaces Moved 2367 | 46 357 360 431 281 252 640 Core 1 | 1 . . . . . . Treads 364 | . 3 . . . 47 314 Legs . | . . . . . . . Wheels 2002 | 45 354 360 431 281 205 326 Hover . | . . . . . . . Flight . | . . . . . . . Fastest Speed 50 | 50 100 120 120 120 130 120 Average Speed 136 | 98 114 120 120 120 145 175 Slowest Speed 220 | 100 200 120 120 120 200 220 Overloaded Moves . | . . . . . . . Propulsion Burnouts . | . . . . . . . Robots Hopped . | . . . . . . . Cave-ins Triggered . | . . . . . . . Exploration Rate (%) 44 | 4 64 75 71 59 20 17 Regions Visited 6 Branch Regions 3 Pre-discovered Areas 2 | . . 1 1 . . . Known Exits Taken . | . . . . . . . Unknown Exits Taken 6 | 1 1 1 1 1 1 . Scrap Searched . | . . . . . . . Spaces Dug 2 | . . . . . 2 . Terrain Destroyed 5 | . . . . . 5 . Melee . | . . . . . . . Projectile 5 | . . . . . 5 . AOE . | . . . . . . . Terrain Rammed . | . . . . . . . Walls Destroyed . | . . . . . . . Machines Disabled . | . . . . . . . Actions | -11 -10 -10 -10 -9 -8 -7 --------- Run | Scr Mat Min Exi Min Mat Fac Total 2977 | 56 418 453 434 344 502 770 Wait 438 | . 20 62 . 63 216 77 Move 2361 | 45 356 359 430 280 251 640 Hop . | . . . . . . . Pick Up 35 | 5 12 4 3 . 4 7 Fast Attach 22 | 5 11 . . . 5 1 Attach 10 | . 5 1 . . 3 1 Detach 1 | . . . . . 1 . Swap 13 | . 3 2 . 1 2 5 Drop 20 | . 1 2 1 . 7 9 Fire 71 | 1 9 20 . . 12 29 Melee . | . . . . . . . Ram 1 | . 1 . . . . . Kick . | . . . . . . . Crush . | . . . . . . . Escape Stasis . | . . . . . . . Rewire . | . . . . . . . Trap 5 | . . 3 . . 1 1 Miscellaneous . | . . . . . . . Route ------- -11/Scrapyard -10/Materials (discovered 3 exits: [*Mat x2] / [*Min]) -10/Mines (discovered 3 exits: [*Mat x2] / *Exi) -10/Exiles -9/Mines -8/Materials -7/Factory (discovered 2 exits: [*Low x2]) History --------- Turn | Location | Event 13 | -11/Scrapyard | Discovered new exit (range 16) 60 | -11/Scrapyard | Entered Materials 244 | -10/Materials | Discovered new exit (range 15) 287 | -10/Materials | Discovered new exit (range 8) 306 | -10/Materials | Build established: Mutant 376 | -10/Materials | Discovered new exit (range 14) 551 | -10/Materials | Entered Mines 556 | -10/Mines | Discovered new exit (range 5) 759 | -10/Mines | Learned location of Storage (-8) 850 | -10/Mines | Found a hidden stash of uninstalled traps 896 | -10/Mines | Discovered new exit (range 11) 1105 | -10/Mines | Deemed a non-threat by the Exiles lab entrance 1106 | -10/Mines | Discovered new exit (range 5) 1111 | -10/Mines | Entered Exiles 1143 | -10/Exiles | Met 8R-AWN 1163 | -10/Exiles | Met EX-HEX 1195 | -10/Exiles | Met EX-BIN 1235 | -10/Exiles | Aligned with FarCom system 1236 | -10/Exiles | Given EX-Vault access code 1266 | -10/Exiles | Opened EX-Vault 1328 | -10/Exiles | Warned to stay clear of 0b10 Research branches 1378 | -10/Exiles | Found Field Lobotomy Kit 1451 | -10/Exiles | Met EX-DEC 1456 | -10/Exiles | Learned location of Zion (-6) 1619 | -10/Exiles | Discovered new exit (range 10) 1631 | -10/Exiles | Left Exiles lab with Field Lobotomy Kit 1631 | -10/Exiles | Entered Mines 1808 | -9/Mines | Assembled infested the area 2025 | -9/Mines | Discovered new exit (range 6) 2032 | -9/Mines | Entered Materials 2032 | -8/Materials | Evolved 4 slots: Propulsion x1, Utility x3 2497 | -8/Materials | Discovered new exit (range 5) 2671 | -8/Materials | Entered Factory 2671 | -7/Factory | Evolved 2 slots: Propulsion x1, Utility x1 2737 | -7/Factory | Discovered new exit (range 8) 3953 | -7/Factory | Discovered new exit (range 11) 3978 | -7/Factory | Self-destructed Last Messages --------------- 03957_ K-01 Serf collects debris. 03957_ Lgt. Treads destroyed. 03960_ K-01 Serf collects debris. 03961_ System corrupted: Energy discharge (-135). 03961_ K-01 Serf collects debris. 03965_ O-24 Administrator uses terminal to summon reinforcements. 03965_ ALERT: Hostiles spotted, dispatching reinforcements to Terminal F005. 03965_ O-24 Administrator locks terminal. 03965_ Hvy. Particle Cannon destroyed. 03967_ K-01 Serf collects debris. 03969_ U-05 Engineer lays Concrete. 03970_ R-06 Scavenger collects Aluminum Leg. 03970_ Dropped Rigged Rnf. Deuterium Engine. 03970_ K-01 Serf collects debris. 03972_ Rigged Rnf. Deuterium Engine explodes. 03972_ R-06 Scavenger destroyed. 03973_ Com. Wheel destroyed. 03974_ Dropped Rigged Lgt. Fission Core. 03976_ Plasma Cannon destroyed. Map ----- +----------------------------------------------------+ | ?????????????????????????????????????????????????? | | ?????????????????????????????????????????????????? | | ?????????????????????????????????????????????????? | | ?????????????????????????????????????????????????? | | ?????????????????????????????????????????????????? | | ?????????????????????????????????????????????????? | | ?????????????????????????????????????????????????? | | ?????????????????????????????????????????????????? | | ?????????????????????????????????????????????????? | | ?????????????????????????????????????????????????? | | ?????????????????????????????????????????????????? | | ?????????????????????????????????????????????????? | | ???????????? ??? ?????#+#??????????????????????? | | ??????????? ?## ##??? ??##############??????? | | ?????????? ## #??? ?## #??????? | | ?????##??? ## ???k ??+ #??????? | | ????? ??? ##[ #??? ??# #??????? | | ?????? ??? """ "###? ??# #??????? | | ??????? ??? " " #?# #??# #??????? | | ??????##+#### #?# #??# #??????? | | ??????# #?# #??# #???#+## | | ??????#" ### ??+ #???# | | ??????#" ## #??# #???# | | ??????#" #?# #??# ##### | | ??????#T ### #??# + | | ??????#" ;@#??# # | | ??????#" == ;;;;%##########+#+#### | | ??????#" =%]g g% % | | ??????# %[*;#;;;+######## | | ??????##""" ; u ?????# | | ???? # """ |] ???# | | ? Y # """ |] #??# | | < + """ ######+### #### | | # ## # #[ | | # " " ## """ # # | | ###+########### ""R"" ## """ # + [ | | ######?? ????????????""""" ## """ !# # | | ??????? ?h????????????######## # # | | ??????# ??????????????????????# """ + # ! | | ??????# ??????????????????????#] """ ####### | | ??????# "??????????????????????# """ #?????# | | ??????# ???????????????????????# #?????# | | ???????????????????????????????##########?????#### | | ?????????????????????????????????????????????????? | | ?????????????????????????????????????????????????? | | ?????????????????????????????????????????????????? | | ?????????????????????????????????????????????????? | | ?????????????????????????????????????????????????? | | ?????????????????????????????????????????????????? | | ?????????????????????????????????????????????????? | +----------------------------------------------------+ Best States ------------- Heat Dissipation 53 Energy Generation 16 Energy Capacity 590 Matter Stores 300 Matter Capacity 300 Sight Range 16 Terrain Scan Density 10 Armor Coverage 150 Evasion (%) 40 Targeting Accuracy 8 Recoil Reduction 3 Item Schematics ----------------- Med. Storage Unit | -7/Factory | Scanalyzed Robot Schematics ------------------ None Fabricated ------------ Nothing Alien Tech Used ----------------- None Achievements -------------- None Challenges ------------ None Game ------ Seed FissionBattleInterrupter Manual? 0 Play Time 00:32:27 Cumulative 124.9 hours Start 2021.11.07 @ 14:58:23 End 2021.12.21 @ 03:45:51 Sessions 6 Manual Loads 0 Difficulty Rogue Special Mode None Game No. 111 Rogue 111 Adventurer 0 Explorer 0 Win Type - Total 12 Types 12/0/0/0/0/0/0/0/0 Lore% 70 Gallery% 73 Achievement% 59 Wizard Run 0 Options --------- ASCII 0 Keyboard 0 Movement Vi Keybinds 0 Fullscreen 1 Font 18/SmallcapsGlow Map View 76x50 Tactical HUD 1 Map Filters NONE Filters NONE Steam 0 RUN: 0f031957-64de-4d46-995a-4aeed951c459